[Event "Early-Titled-Tuesday-Blitz-September-05-2023"]
[Site "Chess.com"]
[Date "2023.09.05"]
[Round "10"]
[White "Sibelephant"]
[Black "Shield12"]
[Result "1/2-1/2"]
[WhiteElo "3132"]
[BlackElo "2976"]
[TimeControl "180+1"]
[EndTime "9:58:02 PDT"]
[Termination "Game drawn by 50-move rule"]

1. Nf3 {[%clk 0:03:00.3]} 1... Nf6 {[%clk 0:02:59.9]} 2. g3 {[%clk 0:03:00.2]}
2... c5 {[%clk 0:02:59]} 3. Bg2 {[%clk 0:03:00.3]} 3... Nc6 {[%clk 0:02:59.4]}
4. c4 {[%clk 0:03:00.7]} 4... d5 {[%clk 0:02:58.9]} 5. cxd5 {[%clk 0:03:01.2]}
5... Nxd5 {[%clk 0:02:59.8]} 6. d4 {[%clk 0:03:01.7]} 6... cxd4 {[%clk
0:02:57.5]} 7. Nxd4 {[%clk 0:03:02.1]} 7... Ndb4 {[%clk 0:02:58.1]} 8. Nxc6
{[%clk 0:03:02.5]} 8... Qxd1+ {[%clk 0:02:58.7]} 9. Kxd1 {[%clk 0:03:02.8]} 9...
Nxc6 {[%clk 0:02:59.6]} 10. Nc3 {[%clk 0:03:02.8]} 10... Bd7 {[%clk 0:02:58.8]}
11. Be3 {[%clk 0:02:52.4]} 11... g6 {[%clk 0:02:56.1]} 12. Ke1 {[%clk
0:02:50.4]} 12... Bg7 {[%clk 0:02:55.7]} 13. Rc1 {[%clk 0:02:50.5]} 13... O-O
{[%clk 0:02:54.8]} 14. f4 {[%clk 0:02:50.1]} 14... Rac8 {[%clk 0:02:44.1]} 15.
Kf2 {[%clk 0:02:49.9]} 15... Be6 {[%clk 0:02:27.5]} 16. Rhd1 {[%clk 0:02:34.9]}
16... Rfd8 {[%clk 0:02:23.4]} 17. Rxd8+ {[%clk 0:01:30]} 17... Rxd8 {[%clk
0:02:23.2]} 18. b3 {[%clk 0:00:59.1]} 18... Bxc3 {[%clk 0:02:20.8]} 19. Rxc3
{[%clk 0:00:54.8]} 19... Bd5 {[%clk 0:02:20.7]} 20. Bf1 {[%clk 0:00:43.7]} 20...
Be4 {[%clk 0:02:20]} 21. Ke1 {[%clk 0:00:38.7]} 21... f5 {[%clk 0:02:13.3]} 22.
Bc5 {[%clk 0:00:35.9]} 22... b6 {[%clk 0:02:09.1]} 23. Ba3 {[%clk 0:00:35]}
23... e5 {[%clk 0:01:46.1]} 24. e3 {[%clk 0:00:32.9]} 24... exf4 {[%clk
0:01:44.8]} 25. gxf4 {[%clk 0:00:33.2]} 25... a5 {[%clk 0:01:31.6]} 26. Bb5
{[%clk 0:00:22.5]} 26... Nb4 {[%clk 0:01:28.8]} 27. Ke2 {[%clk 0:00:13]} 27...
Kg7 {[%clk 0:01:09.6]} 28. Bb2 {[%clk 0:00:10.2]} 28... Kh6 {[%clk 0:01:08]} 29.
Rc7 {[%clk 0:00:09.9]} 29... Rd5 {[%clk 0:00:59]} 30. Bc4 {[%clk 0:00:05.1]}
30... Bd3+ {[%clk 0:00:59.1]} 31. Bxd3 {[%clk 0:00:05]} 31... Nxd3 {[%clk
0:01:00]} 32. Bg7+ {[%clk 0:00:05.2]} 32... Kh5 {[%clk 0:01:00]} 33. Bf6 {[%clk
0:00:02.8]} 33... h6 {[%clk 0:00:37.6]} 34. Rh7 {[%clk 0:00:02.6]} 34... Kg4
{[%clk 0:00:28.4]} 35. Rxh6 {[%clk 0:00:02.6]} 35... Nc1+ {[%clk 0:00:28.6]} 36.
Ke1 {[%clk 0:00:02.3]} 36... Kf3 {[%clk 0:00:22.5]} 37. Rxg6 {[%clk 0:00:02.1]}
37... Kxe3 {[%clk 0:00:18.7]} 38. Rg3+ {[%clk 0:00:01.7]} 38... Ke4 {[%clk
0:00:19.1]} 39. Bg5 {[%clk 0:00:02.1]} 39... Nxa2 {[%clk 0:00:18.1]} 40. h4
{[%clk 0:00:02.4]} 40... Nb4 {[%clk 0:00:15.1]} 41. h5 {[%clk 0:00:03]} 41...
Nc2+ {[%clk 0:00:15.5]} 42. Kf2 {[%clk 0:00:01.9]} 42... Rd2+ {[%clk 0:00:15.2]}
43. Kf1 {[%clk 0:00:02.1]} 43... Ne3+ {[%clk 0:00:12]} 44. Kg1 {[%clk
0:00:02.5]} 44... Rd1+ {[%clk 0:00:10]} 45. Kf2 {[%clk 0:00:02.9]} 45... Ng4+
{[%clk 0:00:09.4]} 46. Ke2 {[%clk 0:00:01.8]} 46... Rh1 {[%clk 0:00:09.6]} 47.
h6 {[%clk 0:00:02.3]} 47... Rh2+ {[%clk 0:00:10.1]} 48. Kf1 {[%clk 0:00:02.6]}
48... Nxh6 {[%clk 0:00:10.1]} 49. Kg1 {[%clk 0:00:03.1]} 49... Rh5 {[%clk
0:00:10.2]} 50. Rc3 {[%clk 0:00:03.4]} 50... Ng4 {[%clk 0:00:08.6]} 51. Bd8
{[%clk 0:00:02.7]} 51... Rh6 {[%clk 0:00:07.4]} 52. Rc4+ {[%clk 0:00:03.1]}
52... Kd3 {[%clk 0:00:07.3]} 53. Rc8 {[%clk 0:00:02.9]} 53... Ne3 {[%clk
0:00:06.4]} 54. Rb8 {[%clk 0:00:03.2]} 54... Nd5 {[%clk 0:00:06.5]} 55. Rb7
{[%clk 0:00:03.1]} 55... Kc3 {[%clk 0:00:05.6]} 56. Rd7 {[%clk 0:00:03]} 56...
Rg6+ {[%clk 0:00:05]} 57. Kf2 {[%clk 0:00:02.8]} 57... Nxf4 {[%clk 0:00:05.6]}
58. Ke3 {[%clk 0:00:02.2]} 58... Ng2+ {[%clk 0:00:03.1]} 59. Kf2 {[%clk
0:00:02.2]} 59... Nf4 {[%clk 0:00:02]} 60. Ke3 {[%clk 0:00:02.3]} 60... Ne6
{[%clk 0:00:02.9]} 61. Bxb6 {[%clk 0:00:02.1]} 61... f4+ {[%clk 0:00:03.4]} 62.
Kf2 {[%clk 0:00:02.5]} 62... Kxb3 {[%clk 0:00:03]} 63. Bxa5 {[%clk 0:00:02.4]}
63... Nc5 {[%clk 0:00:03.6]} 64. Rd5 {[%clk 0:00:02]} 64... Kc4 {[%clk
0:00:03.4]} 65. Rh5 {[%clk 0:00:02.1]} 65... Kd4 {[%clk 0:00:03.1]} 66. Bd2
{[%clk 0:00:01.8]} 66... Ne4+ {[%clk 0:00:03]} 67. Kf3 {[%clk 0:00:02.4]} 67...
Nxd2+ {[%clk 0:00:03.3]} 68. Kxf4 {[%clk 0:00:03.1]} 68... Nc4 {[%clk
0:00:03.2]} 69. Kf5 {[%clk 0:00:02.9]} 69... Rb6 {[%clk 0:00:03.7]} 70. Kf4
{[%clk 0:00:03]} 70... Rf6+ {[%clk 0:00:03]} 71. Rf5 {[%clk 0:00:02.4]} 71...
Ra6 {[%clk 0:00:03.9]} 72. Rf8 {[%clk 0:00:03]} 72... Ra1 {[%clk 0:00:03.9]} 73.
Rd8+ {[%clk 0:00:03.3]} 73... Kc5 {[%clk 0:00:04.5]} 74. Ke4 {[%clk 0:00:04]}
74... Re1+ {[%clk 0:00:02.8]} 75. Kf4 {[%clk 0:00:04.5]} 75... Nd6 {[%clk
0:00:03.7]} 76. Kf3 {[%clk 0:00:04.8]} 76... Kd5 {[%clk 0:00:04.1]} 77. Kf2
{[%clk 0:00:05.5]} 77... Re6 {[%clk 0:00:04.7]} 78. Kf3 {[%clk 0:00:05.9]} 78...
Rf6+ {[%clk 0:00:05.1]} 79. Ke3 {[%clk 0:00:06.1]} 79... Ke5 {[%clk 0:00:05.6]}
80. Rh8 {[%clk 0:00:05.4]} 80... Nc4+ {[%clk 0:00:05.9]} 81. Kd3 {[%clk
0:00:05.8]} 81... Kd5 {[%clk 0:00:06]} 82. Rd8+ {[%clk 0:00:05.5]} 82... Nd6
{[%clk 0:00:06.5]} 83. Ke3 {[%clk 0:00:06.2]} 83... Re6+ {[%clk 0:00:06.8]} 84.
Kd3 {[%clk 0:00:06.3]} 84... Rh6 {[%clk 0:00:06.1]} 85. Ke3 {[%clk 0:00:06.4]}
85... Ke5 {[%clk 0:00:06.4]} 86. Kf3 {[%clk 0:00:05.6]} 86... Rh3+ {[%clk
0:00:06.1]} 87. Kg4 {[%clk 0:00:05.8]} 87... Rd3 {[%clk 0:00:07]} 88. Ra8 {[%clk
0:00:05.9]} 88... Rd4+ {[%clk 0:00:06.4]} 89. Kf3 {[%clk 0:00:05.7]} 89... Rf4+
{[%clk 0:00:06.2]} 90. Ke3 {[%clk 0:00:05.2]} 90... Rb4 {[%clk 0:00:06.2]} 91.
Ra5+ {[%clk 0:00:04.5]} 91... Ke6 {[%clk 0:00:06.5]} 92. Kd3 {[%clk 0:00:04.5]}
92... Rg4 {[%clk 0:00:06.1]} 93. Ke2 {[%clk 0:00:04.1]} 93... Rh4 {[%clk
0:00:05.9]} 94. Rg5 {[%clk 0:00:03.8]} 94... Nc4 {[%clk 0:00:05.5]} 95. Kd3
{[%clk 0:00:03.6]} 95... Ne5+ {[%clk 0:00:05.6]} 96. Ke3 {[%clk 0:00:04.2]}
96... Rh3+ {[%clk 0:00:05.2]} 97. Ke4 {[%clk 0:00:04.4]} 97... Nf3 {[%clk
0:00:05.3]} 98. Rg6+ {[%clk 0:00:04.1]} 98... Kf7 {[%clk 0:00:05.8]} 99. Ra6
{[%clk 0:00:04.9]} 99... Ng5+ {[%clk 0:00:06]} 100. Kf5 {[%clk 0:00:05]} 100...
Nh7 {[%clk 0:00:05.7]} 101. Ra7+ {[%clk 0:00:05.2]} 101... Kg8 {[%clk
0:00:06.3]} 102. Ra8+ {[%clk 0:00:04.8]} 102... Nf8 {[%clk 0:00:06.1]} 103. Kf6
{[%clk 0:00:05.5]} 103... Rh6+ {[%clk 0:00:06.2]} 104. Ke7 {[%clk 0:00:05]}
104... Re6+ {[%clk 0:00:06.3]} 105. Kd8 {[%clk 0:00:04.9]} 105... Rc6 {[%clk
0:00:05.9]} 106. Ke7 {[%clk 0:00:04.5]} 106... Re6+ {[%clk 0:00:04.6]} 107. Kd8
{[%clk 0:00:04.8]} 107... Kf7 {[%clk 0:00:05.3]} 108. Kc7 {[%clk 0:00:05.2]}
108... Ke7 {[%clk 0:00:04.7]} 109. Ra1 {[%clk 0:00:04.8]} 109... Nd7 {[%clk
0:00:05]} 110. Rd1 {[%clk 0:00:04.6]} 110... Ne5 {[%clk 0:00:05.3]} 111. Rc1
{[%clk 0:00:04.1]} 111... Rg6 {[%clk 0:00:04.8]} 112. Re1 {[%clk 0:00:04.1]}
112... Rc6+ {[%clk 0:00:04.6]} 113. Kb7 {[%clk 0:00:04.2]} 113... Re6 {[%clk
0:00:05.5]} 114. Kc7 {[%clk 0:00:04.8]} 114... Rc6+ {[%clk 0:00:05.7]} 115. Kb7
{[%clk 0:00:04]} 115... Rc5 {[%clk 0:00:06.6]} 116. Kb6 {[%clk 0:00:04]} 116...
Rd5 {[%clk 0:00:06.9]} 117. Kb7 {[%clk 0:00:03.5]} 117... Kd7 {[%clk 0:00:06.8]}
118. Rb1 {[%clk 0:00:03.2]} 1/2-1/2

[Event "Early-Titled-Tuesday-Blitz-September-05-2023"]
[Site "Chess.com"]
[Date "2023.09.05"]
[Round "11"]
[White "Heinza9"]
[Black "Sjakkerntobi"]
[Result "1-0"]
[WhiteElo "2308"]
[BlackElo "2460"]
[TimeControl "180+1"]
[EndTime "10:00:57 PDT"]
[Termination "Heinza9 won by checkmate"]

1. e4 {[%clk 0:03:00.9]} 1... e6 {[%clk 0:02:59.9]} 2. c4 {[%clk 0:03:00.4]}
2... d5 {[%clk 0:03:00.6]} 3. cxd5 {[%clk 0:03:00.6]} 3... exd5 {[%clk
0:03:00.9]} 4. exd5 {[%clk 0:03:01]} 4... Nf6 {[%clk 0:03:00.5]} 5. Bb5+ {[%clk
0:03:01.1]} 5... Bd7 {[%clk 0:03:00.5]} 6. Bc4 {[%clk 0:03:01.3]} 6... Bd6
{[%clk 0:02:58.8]} 7. Nf3 {[%clk 0:02:57.1]} 7... O-O {[%clk 0:02:58]} 8. O-O
{[%clk 0:02:56.6]} 8... Bg4 {[%clk 0:02:58.4]} 9. h3 {[%clk 0:02:56.9]} 9... Bh5
{[%clk 0:02:58.1]} 10. Nc3 {[%clk 0:02:56.4]} 10... a6 {[%clk 0:02:57.4]} 11. d4
{[%clk 0:02:55.2]} 11... h6 {[%clk 0:02:55.4]} 12. g4 {[%clk 0:02:52.1]} 12...
Bg6 {[%clk 0:02:54.9]} 13. Ne5 {[%clk 0:02:52]} 13... Bh7 {[%clk 0:02:54.8]} 14.
f4 {[%clk 0:02:51]} 14... Nbd7 {[%clk 0:02:54.8]} 15. Qf3 {[%clk 0:02:41]} 15...
Nb6 {[%clk 0:02:52.4]} 16. Bb3 {[%clk 0:02:41.1]} 16... a5 {[%clk 0:02:38.3]}
17. a4 {[%clk 0:02:40.4]} 17... Bb4 {[%clk 0:02:37.3]} 18. g5 {[%clk 0:02:26.7]}
18... hxg5 {[%clk 0:02:34.2]} 19. fxg5 {[%clk 0:02:26.2]} 19... Ne8 {[%clk
0:02:33.5]} 20. Nxf7 {[%clk 0:02:15.7]} 20... Qe7 {[%clk 0:02:33.4]} 21. d6
{[%clk 0:02:14.9]} 21... Nxd6 {[%clk 0:02:33.5]} 22. Nxd6+ {[%clk 0:02:13.9]}
22... Kh8 {[%clk 0:02:34]} 23. Nf7+ {[%clk 0:02:13.5]} 23... Kg8 {[%clk
0:02:34]} 24. g6 {[%clk 0:02:08.7]} 24... Bxg6 {[%clk 0:02:33.9]} 25. Ne5+
{[%clk 0:02:04.3]} 25... Kh7 {[%clk 0:02:33.4]} 26. Nxg6 {[%clk 0:02:01.7]}
26... Kxg6 {[%clk 0:02:33.4]} 27. Bc2+ {[%clk 0:01:59.2]} 27... Rf5 {[%clk
0:02:29.4]} 28. Qxf5# {[%clk 0:01:58.5]} 1-0

[Event "Early-Titled-Tuesday-Blitz-September-05-2023"]
[Site "Chess.com"]
[Date "2023.09.05"]
[Round "11"]
[White "DarZay"]
[Black "Quattroporte300"]
[Result "0-1"]
[WhiteElo "2269"]
[BlackElo "2401"]
[TimeControl "180+1"]
[EndTime "10:02:09 PDT"]
[Termination "Quattroporte300 won by resignation"]

1. e4 {[%clk 0:02:55.4]} 1... c5 {[%clk 0:02:59.4]} 2. Nf3 {[%clk 0:02:53.3]}
2... d6 {[%clk 0:02:58.1]} 3. d4 {[%clk 0:02:53.5]} 3... cxd4 {[%clk 0:02:57.4]}
4. Nxd4 {[%clk 0:02:53.5]} 4... Nf6 {[%clk 0:02:58]} 5. Nc3 {[%clk 0:02:53.7]}
5... a6 {[%clk 0:02:57.8]} 6. Be2 {[%clk 0:02:52.6]} 6... e6 {[%clk 0:02:56.8]}
7. Be3 {[%clk 0:02:52.1]} 7... Be7 {[%clk 0:02:57]} 8. a4 {[%clk 0:02:51.9]}
8... O-O {[%clk 0:02:56]} 9. f4 {[%clk 0:02:52.2]} 9... b6 {[%clk 0:02:49.1]}
10. O-O {[%clk 0:02:51.5]} 10... Bb7 {[%clk 0:02:49.5]} 11. Bf3 {[%clk
0:02:50.9]} 11... Nbd7 {[%clk 0:02:49.8]} 12. Nb3 {[%clk 0:02:47.7]} 12... Nc5
{[%clk 0:02:48.2]} 13. Nxc5 {[%clk 0:02:44.8]} 13... dxc5 {[%clk 0:02:43.7]} 14.
e5 {[%clk 0:02:38.4]} 14... Nd5 {[%clk 0:02:40.3]} 15. Nxd5 {[%clk 0:02:20.8]}
15... exd5 {[%clk 0:02:40]} 16. c3 {[%clk 0:02:20.6]} 16... Qd7 {[%clk
0:02:39.2]} 17. Qd3 {[%clk 0:02:19.7]} 17... Rad8 {[%clk 0:02:36.5]} 18. f5
{[%clk 0:02:18.8]} 18... d4 {[%clk 0:02:25.2]} 19. Rad1 {[%clk 0:02:01.8]} 19...
Bxf3 {[%clk 0:02:16.3]} 20. Rxf3 {[%clk 0:02:01.3]} 20... Qxa4 {[%clk
0:01:49.7]} 21. cxd4 {[%clk 0:01:59.4]} 21... cxd4 {[%clk 0:01:49.1]} 22. Bxd4
{[%clk 0:01:41.9]} 22... Rxd4 {[%clk 0:01:46.2]} 23. Qxd4 {[%clk 0:01:35]} 23...
Bc5 {[%clk 0:01:44.4]} 24. Qxc5 {[%clk 0:01:32.6]} 24... bxc5 {[%clk 0:01:44.4]}
25. f6 {[%clk 0:01:31.8]} 25... Qxd1+ {[%clk 0:01:43.7]} 0-1

[Event "Early-Titled-Tuesday-Blitz-September-05-2023"]
[Site "Chess.com"]
[Date "2023.09.05"]
[Round "11"]
[White "GamayevOleg"]
[Black "AsaHoffmann"]
[Result "1/2-1/2"]
[WhiteElo "2576"]
[BlackElo "2378"]
[TimeControl "180+1"]
[EndTime "10:02:23 PDT"]
[Termination "Game drawn - insufficient material"]

1. d3 {[%clk 0:02:53.3]} 1... Nf6 {[%clk 0:02:55.7]} 2. e4 {[%clk 0:02:54.2]}
2... c6 {[%clk 0:02:53.2]} 3. Nf3 {[%clk 0:02:54.5]} 3... d5 {[%clk 0:02:53.1]}
4. Nbd2 {[%clk 0:02:55.1]} 4... Bg4 {[%clk 0:02:50.9]} 5. Be2 {[%clk 0:02:54.5]}
5... e6 {[%clk 0:02:50.7]} 6. Ng5 {[%clk 0:02:53.5]} 6... Bxe2 {[%clk
0:02:48.1]} 7. Qxe2 {[%clk 0:02:54.4]} 7... h6 {[%clk 0:02:47.8]} 8. Ngf3 {[%clk
0:02:54.4]} 8... Be7 {[%clk 0:02:46.7]} 9. O-O {[%clk 0:02:53.7]} 9... O-O
{[%clk 0:02:45.1]} 10. c3 {[%clk 0:02:53.8]} 10... Nbd7 {[%clk 0:02:44]} 11. Re1
{[%clk 0:02:54.1]} 11... dxe4 {[%clk 0:02:43.7]} 12. Nxe4 {[%clk 0:02:54]} 12...
Nc5 {[%clk 0:02:41.8]} 13. Nxc5 {[%clk 0:02:50.7]} 13... Bxc5 {[%clk 0:02:41.3]}
14. d4 {[%clk 0:02:51.6]} 14... Bd6 {[%clk 0:02:40.8]} 15. Ne5 {[%clk
0:02:51.9]} 15... Bxe5 {[%clk 0:02:39.9]} 16. Qxe5 {[%clk 0:02:51.3]} 16... Qd5
{[%clk 0:02:39.3]} 17. Bf4 {[%clk 0:02:48.8]} 17... Qxe5 {[%clk 0:02:38.7]} 18.
Bxe5 {[%clk 0:02:49.7]} 18... Nd7 {[%clk 0:02:38.2]} 19. Bg3 {[%clk 0:02:48.7]}
19... Rfe8 {[%clk 0:02:37.8]} 20. f3 {[%clk 0:02:48.8]} 20... c5 {[%clk
0:02:36.7]} 21. Rad1 {[%clk 0:02:48.8]} 21... Rac8 {[%clk 0:02:33.6]} 22. d5
{[%clk 0:02:41.7]} 22... e5 {[%clk 0:02:26.1]} 23. c4 {[%clk 0:02:41.4]} 23...
f6 {[%clk 0:02:23]} 24. b3 {[%clk 0:02:41]} 24... a6 {[%clk 0:02:22.4]} 25. Rd2
{[%clk 0:02:36.2]} 25... b5 {[%clk 0:02:22.2]} 26. Rde2 {[%clk 0:02:35.5]} 26...
bxc4 {[%clk 0:02:19.8]} 27. bxc4 {[%clk 0:02:36.4]} 27... Rb8 {[%clk 0:02:19.8]}
28. f4 {[%clk 0:02:36.5]} 28... Rb4 {[%clk 0:02:19.1]} 29. fxe5 {[%clk
0:02:36.4]} 29... fxe5 {[%clk 0:02:12.4]} 30. Bxe5 {[%clk 0:02:34.4]} 30... Nxe5
{[%clk 0:02:10.6]} 31. Rxe5 {[%clk 0:02:35.3]} 31... Rxe5 {[%clk 0:02:10.6]} 32.
Rxe5 {[%clk 0:02:35.8]} 32... Rxc4 {[%clk 0:02:10.6]} 33. d6 {[%clk 0:02:36.4]}
33... Rd4 {[%clk 0:02:09.5]} 34. Rxc5 {[%clk 0:02:36.4]} 34... Rxd6 {[%clk
0:02:09]} 35. Ra5 {[%clk 0:02:36.3]} 35... Rf6 {[%clk 0:02:08.3]} 36. h3 {[%clk
0:02:36.3]} 36... Kf7 {[%clk 0:02:06]} 37. Kh2 {[%clk 0:02:36.8]} 37... Ke7
{[%clk 0:02:06]} 38. g4 {[%clk 0:02:33.9]} 38... Kd7 {[%clk 0:02:05.3]} 39. Kg3
{[%clk 0:02:34.3]} 39... Kc7 {[%clk 0:02:04.8]} 40. h4 {[%clk 0:02:34.2]} 40...
Kb6 {[%clk 0:02:04.7]} 41. Ra3 {[%clk 0:02:33.6]} 41... a5 {[%clk 0:02:04.5]}
42. g5 {[%clk 0:02:33.5]} 42... hxg5 {[%clk 0:02:03.9]} 43. hxg5 {[%clk
0:02:34.4]} 43... Rf5 {[%clk 0:02:03.3]} 44. Kg4 {[%clk 0:02:31.5]} 44... g6
{[%clk 0:02:03.2]} 45. Rb3+ {[%clk 0:02:31]} 45... Kc5 {[%clk 0:01:56.9]} 46.
Re3 {[%clk 0:02:27.8]} 46... Rf2 {[%clk 0:01:51.4]} 47. Re6 {[%clk 0:02:26.9]}
47... Rxa2 {[%clk 0:01:49.6]} 48. Rxg6 {[%clk 0:02:27]} 48... Rg2+ {[%clk
0:01:48.7]} 49. Kf5 {[%clk 0:02:26.9]} 49... Kb4 {[%clk 0:01:48.1]} 50. Rb6+
{[%clk 0:02:26.1]} 50... Ka3 {[%clk 0:01:45.4]} 51. Ra6 {[%clk 0:02:26.5]} 51...
a4 {[%clk 0:01:45.1]} 52. g6 {[%clk 0:02:27]} 52... Kb3 {[%clk 0:01:44.5]} 53.
Kf6 {[%clk 0:02:26.9]} 53... a3 {[%clk 0:01:43.5]} 54. Kf7 {[%clk 0:02:27.2]}
54... Kb2 {[%clk 0:01:42.1]} 55. g7 {[%clk 0:02:27]} 55... Rxg7+ {[%clk
0:01:41.2]} 56. Kxg7 {[%clk 0:02:26.4]} 56... a2 {[%clk 0:01:41.2]} 57. Rxa2+
{[%clk 0:02:26.9]} 57... Kxa2 {[%clk 0:01:40.9]} 1/2-1/2

[Event "Early-Titled-Tuesday-Blitz-September-05-2023"]
[Site "Chess.com"]
[Date "2023.09.05"]
[Round "11"]
[White "jsdbv18"]
[Black "hansen"]
[Result "0-1"]
[WhiteElo "2623"]
[BlackElo "2852"]
[TimeControl "180+1"]
[EndTime "10:02:33 PDT"]
[Termination "hansen won by resignation"]

1. d4 {[%clk 0:02:57.7]} 1... Nf6 {[%clk 0:02:59.4]} 2. c4 {[%clk 0:02:57.7]}
2... e6 {[%clk 0:02:59.9]} 3. Nf3 {[%clk 0:02:58]} 3... Bb4+ {[%clk 0:03:00.5]}
4. Nbd2 {[%clk 0:02:57.6]} 4... d5 {[%clk 0:03:00.7]} 5. e3 {[%clk 0:02:50]}
5... O-O {[%clk 0:03:00.9]} 6. a3 {[%clk 0:02:48.3]} 6... Be7 {[%clk 0:03:00.7]}
7. Bd3 {[%clk 0:02:47.6]} 7... Nbd7 {[%clk 0:02:59.1]} 8. c5 {[%clk 0:02:43.3]}
8... e5 {[%clk 0:02:47.4]} 9. Nxe5 {[%clk 0:02:13]} 9... Nxe5 {[%clk 0:02:47.5]}
10. dxe5 {[%clk 0:02:13.5]} 10... Nd7 {[%clk 0:02:48.4]} 11. Qc2 {[%clk
0:02:08.4]} 11... g6 {[%clk 0:02:47.1]} 12. e6 {[%clk 0:02:07.4]} 12... Nxc5
{[%clk 0:02:46.7]} 13. exf7+ {[%clk 0:02:07]} 13... Rxf7 {[%clk 0:02:47.1]} 14.
Nf3 {[%clk 0:02:02.6]} 14... Nxd3+ {[%clk 0:02:44.2]} 15. Qxd3 {[%clk
0:02:02.9]} 15... Bf5 {[%clk 0:02:44.8]} 16. Qd1 {[%clk 0:01:54]} 16... Bd6
{[%clk 0:02:44.7]} 17. Nd4 {[%clk 0:01:36.8]} 17... Bd7 {[%clk 0:02:39.9]} 18.
Bd2 {[%clk 0:01:29.1]} 18... Qg5 {[%clk 0:02:39.6]} 19. g3 {[%clk 0:01:16.1]}
19... c5 {[%clk 0:02:39.8]} 20. Ne2 {[%clk 0:00:57.1]} 20... Bg4 {[%clk
0:02:33.2]} 21. Qb3 {[%clk 0:00:54.5]} 21... Bf3 {[%clk 0:02:32.3]} 22. Rg1
{[%clk 0:00:53.6]} 22... Qf5 {[%clk 0:02:26.2]} 23. Nf4 {[%clk 0:00:51.3]} 23...
g5 {[%clk 0:02:22]} 24. Ng2 {[%clk 0:00:43.3]} 24... c4 {[%clk 0:02:15.6]} 25.
Qc3 {[%clk 0:00:35.2]} 25... Be5 {[%clk 0:02:15.9]} 26. Qb4 {[%clk 0:00:35.5]}
26... Qd3 {[%clk 0:02:15]} 0-1

[Event "Early-Titled-Tuesday-Blitz-September-05-2023"]
[Site "Chess.com"]
[Date "2023.09.05"]
[Round "11"]
[White "DenLaz"]
[Black "Bauman_Guy"]
[Result "1-0"]
[WhiteElo "3069"]
[BlackElo "2873"]
[TimeControl "180+1"]
[EndTime "10:02:47 PDT"]
[Termination "DenLaz won by resignation"]

1. d4 {[%clk 0:03:00.9]} 1... Nf6 {[%clk 0:02:59.7]} 2. c4 {[%clk 0:03:01.2]}
2... b6 {[%clk 0:02:59.6]} 3. Nc3 {[%clk 0:02:59.6]} 3... Bb7 {[%clk 0:02:59.9]}
4. Qc2 {[%clk 0:02:59.1]} 4... e6 {[%clk 0:02:57.2]} 5. e4 {[%clk 0:02:58]} 5...
Bb4 {[%clk 0:02:57.8]} 6. e5 {[%clk 0:02:57.2]} 6... Ne4 {[%clk 0:02:57.6]} 7.
Nf3 {[%clk 0:02:56.4]} 7... O-O {[%clk 0:02:53.2]} 8. Bd3 {[%clk 0:02:56.2]}
8... f5 {[%clk 0:02:53.4]} 9. exf6 {[%clk 0:02:50]} 9... Nxf6 {[%clk 0:02:50.8]}
10. Bg5 {[%clk 0:02:50.7]} 10... h6 {[%clk 0:02:38]} 11. Bh4 {[%clk 0:02:49.6]}
11... Nc6 {[%clk 0:02:31.6]} 12. O-O-O {[%clk 0:02:48.4]} 12... Be7 {[%clk
0:02:31.3]} 13. a3 {[%clk 0:02:47.9]} 13... Nh5 {[%clk 0:02:26]} 14. Bg3 {[%clk
0:02:47.1]} 14... Nf4 {[%clk 0:02:19]} 15. Bxf4 {[%clk 0:02:45.5]} 15... Rxf4
{[%clk 0:02:19.9]} 16. d5 {[%clk 0:02:46.2]} 16... exd5 {[%clk 0:02:12.6]} 17.
cxd5 {[%clk 0:02:45.7]} 17... Na5 {[%clk 0:02:05.7]} 18. Ne5 {[%clk 0:02:44.7]}
18... Bg5 {[%clk 0:01:38.1]} 19. Kb1 {[%clk 0:02:42.9]} 19... Rf6 {[%clk
0:01:30]} 20. g3 {[%clk 0:02:31.2]} 20... d6 {[%clk 0:01:30.1]} 21. h4 {[%clk
0:02:24.6]} 21... Bxh4 {[%clk 0:01:05.9]} 22. Ng4 {[%clk 0:02:23.2]} 22... Bg5
{[%clk 0:00:58]} 23. f4 {[%clk 0:02:23.4]} 23... Rf8 {[%clk 0:00:54.1]} 24. fxg5
{[%clk 0:02:18.5]} 24... Qxg5 {[%clk 0:00:55]} 25. Rh4 {[%clk 0:02:18.9]} 25...
Rae8 {[%clk 0:00:51.6]} 26. Rdh1 {[%clk 0:02:17.8]} 26... Bxd5 {[%clk
0:00:32.6]} 27. Nxd5 {[%clk 0:02:16.6]} 27... Qxd5 {[%clk 0:00:33.5]} 28. Nxh6+
{[%clk 0:02:16.8]} 28... gxh6 {[%clk 0:00:32.7]} 29. Bc4 {[%clk 0:02:17.4]}
29... Nxc4 {[%clk 0:00:31.3]} 30. Qg6+ {[%clk 0:02:17.7]} 1-0

[Event "Early-Titled-Tuesday-Blitz-September-05-2023"]
[Site "Chess.com"]
[Date "2023.09.05"]
[Round "11"]
[White "WilsonPalencia21"]
[Black "TanitoluwaAps116"]
[Result "0-1"]
[WhiteElo "2549"]
[BlackElo "2767"]
[TimeControl "180+1"]
[EndTime "10:02:47 PDT"]
[Termination "TanitoluwaAps116 won by resignation"]

1. d4 {[%clk 0:02:05.8]} 1... Nf6 {[%clk 0:02:54]} 2. c4 {[%clk 0:02:04.8]} 2...
e6 {[%clk 0:02:54.3]} 3. Nf3 {[%clk 0:02:05.1]} 3... b6 {[%clk 0:02:54.8]} 4. g3
{[%clk 0:02:04.4]} 4... Ba6 {[%clk 0:02:55.1]} 5. Qc2 {[%clk 0:02:04.1]} 5...
Bb7 {[%clk 0:02:53.2]} 6. Bg2 {[%clk 0:02:04.4]} 6... c5 {[%clk 0:02:53.5]} 7.
d5 {[%clk 0:02:04.7]} 7... exd5 {[%clk 0:02:54]} 8. cxd5 {[%clk 0:02:05.6]} 8...
Nxd5 {[%clk 0:02:54.5]} 9. O-O {[%clk 0:02:05.9]} 9... Nc6 {[%clk 0:02:54]} 10.
Rd1 {[%clk 0:02:05.7]} 10... Be7 {[%clk 0:02:54.7]} 11. a3 {[%clk 0:02:05.6]}
11... Nf6 {[%clk 0:02:49.3]} 12. e4 {[%clk 0:02:05.2]} 12... O-O {[%clk
0:02:49.2]} 13. e5 {[%clk 0:02:04.3]} 13... Ne8 {[%clk 0:02:49.4]} 14. Nc3
{[%clk 0:02:03.9]} 14... Nc7 {[%clk 0:02:43.9]} 15. Be3 {[%clk 0:01:57.6]} 15...
Ne6 {[%clk 0:02:41]} 16. Rd2 {[%clk 0:01:57.5]} 16... Ncd4 {[%clk 0:02:31.5]}
17. Nxd4 {[%clk 0:01:53.9]} 17... cxd4 {[%clk 0:02:28.4]} 18. Bxd4 {[%clk
0:01:45.5]} 18... Bxg2 {[%clk 0:02:26.4]} 19. Kxg2 {[%clk 0:01:46.4]} 19... f6
{[%clk 0:02:16.4]} 20. Rad1 {[%clk 0:01:41.9]} 20... Nxd4 {[%clk 0:02:02.7]} 21.
Rxd4 {[%clk 0:01:41.4]} 21... fxe5 {[%clk 0:02:03.2]} 22. Rxd7 {[%clk
0:01:40.9]} 22... Qe8 {[%clk 0:02:03.1]} 23. Qb3+ {[%clk 0:01:35.6]} 23... Kh8
{[%clk 0:02:01.6]} 24. Qe6 {[%clk 0:01:27.1]} 24... Rxf2+ {[%clk 0:01:40.6]} 25.
Kh1 {[%clk 0:01:25.2]} 25... Qh5 {[%clk 0:01:30.7]} 0-1